bitfinex/quotes_ETHUSD_20241123
["timestamp","ask_amount","ask_price","bid_price","bid_amount"]
[1732398326723,2.95333195,3423.7,3423.0,0.29213]
[1732398326944,2.92087,3423.7,3423.0,0.29213]
[1732398327150,0.03511777,3423.6,3423.0,0.4442084]
[1732398327511,0.03511777,3423.6,3423.1,0.29213]
[1732398327923,2.92064,3423.9,3423.2,0.29212]
[1732398328127,0.03006052,3423.5,3423.2,0.29212]
[1732398328326,1.157859,3424.0,3423.2,0.29212]
[1732398328552,0.03232934,3423.4,3423.3,1.05081]
[1732398328713,5.71160117,3424.2,3423.4,0.2921]
[1732398328918,5.71160117,3424.2,3423.5,0.29209]
[1732398329420,6.94992529,3424.2,3423.5,0.29209]
[1732398330152,6.94992529,3424.2,3423.6,0.29208]
[1732398330847,2.92041,3424.2,3423.6,0.29208]
[1732398331043,3.0,3424.1,3423.6,0.29208]
[1732398331423,2.92041,3424.2,3423.6,0.29208]
[1732398331753,3.54261117,3424.6,3423.7,0.7587]
[1732398332947,2.92013,3424.5,3423.9,0.29206]
[1732398333145,7.11176053,3424.6,3423.9,0.29205]
[1732398333366,2.9202,3424.5,3423.8,0.29207]
[1732398334030,2.9202,3424.5,3423.9,0.29206]
[1732398334464,3.54261117,3424.6,3423.9,0.29206]
[1732398334766,6.46267117,3424.6,3423.8,0.01607103]
[1732398334968,2.92013,3424.5,3423.8,0.30813103]
[1732398335723,0.0284124,3424.7,3424.0,0.29204]
[1732398336036,0.0284124,3424.7,3423.9,0.8276]
[1732398336244,0.0284124,3424.7,3424.3,0.8276]
[1732398336922,0.0284124,3424.7,3424.5,0.29201]
[1732398337124,0.0284124,3424.7,3424.3,0.8276]
[1732398337541,0.0284124,3424.7,3424.4,0.29202]
[1732398337740,0.0284124,3424.7,3424.3,1.11962]
[1732398338049,0.0284124,3424.7,3424.3,0.8276]
[1732398338926,0.0284124,3424.7,3424.3,1.11962]
[1732398339667,0.0284124,3424.7,3424.4,0.29202]
[1732398340124,0.03767299,3424.6,3424.4,0.29202]
[1732398340924,0.03767299,3424.6,3424.5,0.29201]
[1732398342032,0.03767299,3424.6,3424.3,1.11962]
[1732398342364,0.03767299,3424.6,3424.5,0.29201]
[1732398342586,0.03767299,3424.6,3424.3,1.11962]
[1732398343636,0.03767299,3424.6,3424.4,0.29201]
[1732398343832,0.03767299,3424.6,3424.3,1.11962]
[1732398344136,0.03767299,3424.6,3424.4,0.29202]
[1732398344663,0.03767299,3424.6,3424.3,1.289936]
[1732398344976,0.03767299,3424.6,3424.4,0.29202]
[1732398345926,0.03767299,3424.6,3424.3,0.997916]
[1732398346135,0.03767299,3424.6,3424.3,1.289936]
[1732398347465,0.03767299,3424.6,3424.3,1.11962]
[1732398347651,0.03767299,3424.6,3424.3,0.8276]
[1732398347830,0.03767299,3424.6,3424.3,1.11962]
[1732398348967,0.01807144,3424.6,3424.3,1.11962]
[1732398349173,0.04056241,3424.6,3424.3,1.11962]
[1732398349474,0.04056241,3424.6,3424.4,0.29202]
[1732398349769,0.04056241,3424.6,3424.5,0.29201]
[1732398353433,0.04056241,3424.6,3424.4,0.29202]
[1732398357092,0.04056241,3424.6,3424.3,1.11962]
[1732398357291,0.04056241,3424.6,3424.3,0.8276]
[1732398357494,0.04056241,3424.6,3424.4,0.29202]
[1732398358168,0.04056241,3424.6,3424.3,0.8276]
[1732398358372,0.04056241,3424.6,3424.3,1.11962]
[1732398358897,2.92028,3424.4,3423.8,0.01607103]
[1732398359080,2.92041,3424.2,3423.8,0.01607103]
[1732398359405,0.04039781,3424.1,3423.8,0.01607103]
[1732398360498,0.04039781,3424.1,3423.8,0.30814103]
[1732398360703,3.67521,3424.3,3423.8,0.01607103]
[1732398360911,0.04045438,3424.2,3423.8,0.01607103]
[1732398361203,3.67522,3424.3,3423.8,0.01607103]
[1732398361412,0.04039781,3424.1,3423.8,0.01607103]
[1732398361583,0.7549,3424.3,3423.8,0.01607103]
[1732398361791,0.04034124,3424.0,3423.8,0.01607103]
[1732398362111,0.04015347,3423.9,3423.8,0.01607103]
[1732398362476,3.67521,3424.3,3423.8,0.01607103]
[1732398362674,0.04015347,3423.9,3423.8,0.01607103]
[1732398362980,0.04015347,3423.9,3423.8,0.30814103]
[1732398363409,0.7549,3424.3,3423.8,0.30814103]
[1732398363575,0.04015347,3423.9,3423.8,0.30814103]
[1732398363782,0.7549,3424.3,3423.8,0.47419313]
[1732398364021,0.04015347,3423.9,3423.8,0.30814103]
[1732398364179,2.92014,3424.5,3423.8,0.30814103]
[1732398364508,0.04015347,3423.9,3423.8,0.30814103]
[1732398364717,0.04015347,3423.9,3423.8,0.01607103]
[1732398365011,0.0401679,3423.9,3423.8,0.01607103]
[1732398365217,2.92047,3424.1,3423.8,0.01607103]
[1732398365411,0.04018364,3423.9,3423.8,0.01607103]
[1732398365586,2.92047,3424.1,3423.8,0.01607103]
[1732398365931,3.71572364,3423.9,3423.8,0.01607103]
[1732398366221,3.67554,3423.9,3423.8,0.01607103]
[1732398366528,4.65846055,3423.9,3423.8,0.01607103]
[1732398369324,5.24761831,3423.9,3423.8,0.01607103]
[1732398369694,8.24761831,3423.9,3423.8,1.03e-06]
[1732398369894,8.34761831,3423.9,3423.8,1.03e-06]
[1732398371124,8.24761831,3423.9,3423.8,1.03e-06]
[1732398377343,0.7766,3423.6,3422.7,0.57907224]
[1732398377647,2.92167,3422.7,3422.6,0.01607973]
[1732398378134,2.97053871,3422.7,3422.6,0.01607973]
[1732398379646,0.04886871,3422.7,3422.6,0.01607973]
[1732398379849,2.92158,3422.8,3422.7,0.1175448]
[1732398385172,4.15480912,3422.8,3422.7,0.1175448]
[1732398386465,4.93140912,3422.8,3422.7,0.1175448]
[1732398390485,5.51497385,3422.8,3422.7,0.1175448]
[1732398392991,8.51497385,3422.8,3422.7,0.1175448]
[1732398393407,8.51497385,3422.8,3422.6,0.01607973]
[1732398393408,5.92167,3422.7,3422.6,4.53e-06]
[1732398393706,8.42075162,3422.7,3422.6,4.53e-06]
[1732398394568,2.92201,3422.3,3422.2,0.57668073]
[1732398394769,2.92286,3421.3,3421.2,0.8122]
[1732398395351,2.92278,3421.4,3421.2,0.8122]
[1732398395655,0.7972,3422.1,3421.2,0.8122]
[1732398395944,2.92277,3421.5,3421.2,0.8122]
[1732398396159,2.92279,3421.4,3421.2,0.8122]
[1732398396953,1.52245232,3422.1,3421.2,0.8122]
[1732398397128,2.92265,3421.6,3421.2,0.8122]
[1732398397329,2.92269,3421.5,3421.2,0.8122]
[1732398397526,2.92286,3421.3,3421.2,0.8122]
[1732398397957,2.92314,3421.0,3420.5,0.8122]
[1732398398120,2.92314,3421.0,3420.6,2.56927128]
[1732398398319,2.92296,3421.2,3420.7,2.28353385]
[1732398398514,3.58841117,3421.6,3420.7,2.28353385]
[1732398398515,2.92269,3421.5,3420.7,2.28353385]
[1732398398760,2.92324,3420.9,3420.7,2.28353385]
[1732398399127,2.92306,3421.1,3420.7,2.28353385]
[1732398399334,2.92322,3420.9,3420.7,2.28353385]
[1732398400567,2.79121117,3421.2,3420.7,2.28353385]
[1732398400858,2.92309,3421.1,3420.7,2.28353385]
[1732398401056,2.92314,3421.0,3420.7,2.28353385]
[1732398401622,2.92305,3421.1,3420.7,2.28353385]
[1732398401821,2.92305,3421.1,3420.8,0.8122]
[1732398402064,2.92312,3421.0,3420.9,2.28353385]
[1732398404471,3.78685812,3421.0,3420.9,2.28353385]
[1732398405284,2.92337,3420.7,3420.6,0.8122]
[1732398407266,2.92301,3421.2,3420.6,0.8122]
[1732398407694,2.92278,3421.4,3420.7,0.8122]
[1732398407900,2.92295,3421.2,3420.7,0.8122]
[1732398408063,2.92278,3421.4,3420.7,0.8122]
[1732398408481,2.92279,3421.4,3420.8,0.29232]
[1732398408788,2.92267,3421.6,3421.1,0.7887]
[1732398409887,2.92278,3421.4,3421.1,0.7887]
[1732398410189,2.92269,3421.5,3421.3,0.59689994]
[1732398410779,2.92278,3421.4,3421.3,0.59689994]
[1732398411480,2.92278,3421.4,3421.1,0.7887]
[1732398411684,2.92295,3421.2,3421.1,0.7887]
[1732398411881,2.92325,3420.9,3420.4,0.7887]
[1732398412101,5.71413117,3421.3,3420.4,0.7887]
[1732398412418,2.92344,3420.7,3420.4,0.7887]
[1732398412566,2.92354,3420.5,3420.4,0.7887]
[1732398413385,2.92354,3420.5,3419.8,0.793]
[1732398413620,5.71447117,3420.9,3419.8,0.793]
[1732398413909,0.64956712,3420.8,3419.9,0.2924]
[1732398414125,2.92351,3420.6,3419.9,0.29239]
[1732398414423,2.92356,3420.5,3420.0,0.793]
[1732398414591,2.92365,3420.4,3420.0,0.793]
[1732398415622,2.92377,3420.3,3420.0,0.793]
[1732398415929,2.92381,3420.2,3420.0,0.793]
[1732398416434,2.92365,3420.4,3420.0,0.793]
[1732398417034,2.92373,3420.3,3420.0,0.793]
[1732398417383,2.92382,3420.2,3420.0,0.793]
[1732398417623,2.92382,3420.2,3419.7,0.793]
[1732398417793,2.9239,3420.1,3419.7,0.793]
[1732398417998,2.92376,3420.3,3419.7,0.793]
[1732398418200,1.44366712,3420.8,3419.7,0.793]
[1732398418402,2.92372,3420.3,3419.7,0.793]
[1732398419193,2.92382,3420.2,3419.7,0.793]
[1732398419893,2.92372,3420.3,3419.7,0.793]
[1732398420121,2.92381,3420.2,3419.7,0.793]
[1732398420625,2.92412,3419.9,3419.7,0.793]
[1732398421123,2.92395,3420.1,3419.7,0.793]
[1732398421992,2.92389,3420.1,3419.7,0.793]
[1732398422334,2.92372,3420.3,3419.7,0.793]
[1732398422535,2.9239,3420.1,3419.7,0.793]
[1732398423993,2.79121117,3420.5,3419.7,0.793]
[1732398424195,2.92414,3419.8,3419.7,0.793]
[1732398424623,2.92398,3420.0,3419.7,0.793]
[1732398425009,2.92414,3419.8,3419.7,0.793]
[1732398425542,3.71793,3420.2,3419.7,0.793]
[1732398425833,2.92389,3420.1,3419.7,0.793]
[1732398426220,2.92408,3419.9,3419.7,0.793]
[1732398426746,2.92372,3420.3,3419.7,0.793]
[1732398426892,2.92387,3420.2,3419.7,0.793]
[1732398427243,2.92385,3420.2,3419.7,0.793]
[1732398428021,2.9239,3420.1,3419.7,0.793]
[1732398428344,2.92414,3419.8,3419.7,0.793]
[1732398428499,2.9244,3419.6,3419.2,0.8315]
[1732398429861,2.9244,3419.6,3419.3,0.58244095]
[1732398430149,2.92442,3419.5,3419.3,0.58244095]
[1732398430367,2.92448,3419.4,3419.3,0.58244095]
[1732398430561,2.92457,3419.3,3419.2,0.8315]
[1732398430717,2.92457,3419.3,3419.1,4.53e-06]
[1732398430916,2.92466,3419.2,3419.1,4.53e-06]
[1732398431570,2.79121117,3419.7,3419.1,4.53e-06]
[1732398431859,2.92423,3419.7,3419.2,0.8315]
[1732398432042,2.92402,3420.0,3419.2,0.8315]
[1732398432219,2.92407,3419.9,3419.5,0.8315]
[1732398433237,2.92395,3420.1,3419.5,0.8315]
[1732398433619,2.92395,3420.1,3419.5,1.12393]
[1732398433958,2.92395,3420.1,3419.5,0.8315]
[1732398434255,2.92412,3419.9,3419.6,2.24963459]
[1732398434618,2.92398,3420.0,3419.6,2.24963459]
[1732398435267,2.79121117,3420.1,3419.6,2.24963459]
[1732398435568,3.54171117,3419.7,3419.1,4.53e-06]
[1732398435717,2.92454,3419.4,3419.1,4.53e-06]
[1732398435915,0.64658412,3419.6,3419.1,4.53e-06]
[1732398436114,2.92459,3419.3,3419.1,4.53e-06]
[1732398436356,2.92466,3419.2,3419.1,4.53e-06]
[1732398438338,3.509575,3419.2,3419.1,4.53e-06]
[1732398439736,4.260075,3419.2,3419.1,4.53e-06]
[1732398440982,3.509575,3419.2,3419.1,4.53e-06]
[1732398441573,2.92466,3419.2,3419.1,4.53e-06]
[1732398442837,3.67516,3419.2,3419.1,4.53e-06]
[1732398443042,6.67516,3419.2,3419.1,4.53e-06]
[1732398444540,9.46637117,3419.2,3419.1,4.53e-06]
[1732398445284,3.0,3419.3,3419.1,4.53e-06]
[1732398445458,2.92449,3419.4,3419.1,4.53e-06]
[1732398445655,3.0,3419.5,3419.1,4.53e-06]
[1732398446187,2.92466,3419.2,3419.1,4.53e-06]
[1732398447688,2.92456,3419.4,3419.1,4.53e-06]
[1732398447843,2.92466,3419.2,3419.1,4.53e-06]
[1732398448049,2.92456,3419.4,3419.1,4.53e-06]
[1732398448248,2.92459,3419.3,3419.1,4.53e-06]
[1732398448863,2.9245,3419.4,3419.1,4.53e-06]
[1732398449081,2.92466,3419.2,3419.1,4.53e-06]
[1732398450995,3.53147323,3419.4,3419.1,4.53e-06]
[1732398451172,2.92458,3419.3,3419.1,4.53e-06]
[1732398453688,2.9246,3419.3,3419.1,4.53e-06]
[1732398453991,2.92458,3419.3,3419.1,4.53e-06]
[1732398454154,2.92466,3419.2,3419.1,4.53e-06]
[1732398455421,6.1008038,3419.2,3419.1,4.53e-06]
[1732398455749,9.1008038,3419.2,3419.1,4.53e-06]
[1732398459780,9.8787038,3419.2,3419.1,4.53e-06]
[1732398465666,9.1008038,3419.2,3419.1,4.53e-06]
[1732398466700,9.8787038,3419.2,3419.1,4.53e-06]
[1732398472979,9.1008038,3419.2,3419.1,4.53e-06]
[1732398474020,5.92466,3419.2,3419.1,4.53e-06]
[1732398474236,2.92464,3419.3,3419.1,0.81360453]
[1732398474409,5.92466,3419.2,3419.1,0.81360453]
[1732398475309,8.71587117,3419.2,3419.1,0.81360453]
[1732398478842,2.9245,3419.4,3419.1,0.81360453]
[1732398479013,3.0,3419.3,3419.1,0.81360453]
[1732398479930,2.92466,3419.2,3419.1,0.81360453]
[1732398484751,2.92466,3419.2,3419.1,0.8136]
[1732398485537,2.925,3418.8,3417.9,0.2917]
[1732398485757,2.9249,3419.0,3418.3,0.29253]
[1732398485912,2.92499,3418.9,3418.4,0.8136]
[1732398486241,2.925,3418.8,3418.4,0.8136]
[1732398486553,2.92517,3418.6,3418.1,0.5803828]
[1732398487330,0.585018,3418.6,3417.9,0.8136]
[1732398487531,2.92541,3418.4,3417.9,0.8136]
[1732398488239,2.92528,3418.5,3417.9,0.8136]
[1732398488439,5.79121117,3418.9,3417.9,0.8136]
[1732398488615,2.92534,3418.4,3417.9,0.8136]
[1732398490020,2.92503,3418.8,3418.2,0.29254]
[1732398490251,2.92502,3418.8,3418.1,0.29255]
[1732398490419,2.9251,3418.7,3418.0,0.754]
[1732398490619,2.9251,3418.7,3418.1,0.29255]
[1732398490840,2.9251,3418.7,3418.2,0.754]
[1732398491150,2.92505,3418.8,3418.3,0.754]
[1732398491331,2.92486,3419.0,3418.3,0.754]
[1732398491529,2.92509,3418.7,3418.3,0.754]
[1732398492471,2.92531,3418.5,3418.3,0.754]
[1732398493264,2.92509,3418.7,3418.3,0.754]
[1732398493454,2.92522,3418.6,3418.3,0.754]
[1732398494423,2.92505,3418.8,3418.3,0.754]
[1732398494638,2.92515,3418.7,3418.3,0.754]
[1732398495468,2.92534,3418.4,3418.0,1.42229307]
[1732398495636,2.92534,3418.4,3418.0,0.8303]
[1732398496743,2.92585,3417.8,3417.7,0.8303]
[1732398496942,2.92585,3417.8,3417.1,0.8303]
[1732398497130,2.92609,3417.6,3417.1,0.8303]
[1732398497331,2.79121117,3417.7,3417.1,0.8303]
[1732398497537,2.92636,3417.3,3417.1,0.8303]
[1732398498732,2.92611,3417.5,3417.1,0.8303]
[1732398499269,2.92633,3417.3,3417.1,0.8303]
[1732398499947,2.9262,3417.4,3417.1,0.8303]
[1732398500135,2.9263,3417.3,3417.1,0.8303]
[1732398500505,2.92612,3417.5,3417.1,0.8303]
[1732398500673,2.92622,3417.4,3417.1,0.8303]
[1732398500978,2.92613,3417.5,3417.1,0.8303]
[1732398501470,2.79121117,3417.7,3417.1,0.8303]
[1732398501673,2.92586,3417.8,3417.1,1.12294]
[1732398501834,2.92608,3417.6,3417.1,0.8303]
[1732398502848,2.92595,3417.7,3417.1,1.12294]
[1732398503464,3.0,3417.6,3417.1,1.12294]
[1732398504051,2.92595,3417.7,3417.1,1.12294]
[1732398505264,2.92622,3417.4,3417.1,0.8303]
[1732398506551,2.92604,3417.6,3417.1,0.8303]
[1732398506781,3.0,3417.7,3417.1,1.12294]
[1732398506980,3.0,3417.8,3417.1,1.12294]
[1732398507161,2.92605,3417.6,3417.1,0.8303]
[1732398508782,2.92611,3417.5,3417.1,0.8303]
[1732398509997,6.86652833,3417.8,3417.1,0.8303]
[1732398510172,6.86652833,3417.8,3417.1,1.12293]
[1732398510378,2.92571,3418.0,3417.2,1.08223]
[1732398510609,2.98892681,3418.4,3417.8,0.29258]
[1732398510893,0.06355681,3418.4,3417.9,0.7896]
[1732398511483,0.06355681,3418.4,3418.1,0.29255]
[1732398511688,0.06355681,3418.4,3418.2,1.08215]
[1732398513163,0.06355681,3418.4,3418.2,0.7896]
[1732398517298,0.66242949,3418.4,3417.7,1.11159]
[1732398517510,2.98894681,3418.4,3417.7,1.11159]
[1732398517976,2.92543,3418.3,3417.7,1.11159]
[1732398520086,0.06355681,3418.4,3418.0,0.29256]
[1732398520289,0.06355681,3418.4,3418.1,0.819]
[1732398520696,0.06355681,3418.4,3418.1,1.11155]
[1732398521374,0.06355681,3418.4,3418.1,0.819]
[1732398524002,0.06355681,3418.4,3418.3,0.819]
[1732398525522,0.06355681,3418.4,3417.4,1.1107]
[1732398525806,0.06355681,3418.4,3417.5,0.819]
[1732398526167,0.06355681,3418.4,3417.6,0.55]
[1732398526369,0.06355681,3418.4,3417.8,0.819]
[1732398531800,0.06355681,3418.4,3418.0,0.782]
[1732398532013,0.06355681,3418.4,3418.2,0.782]
[1732398534939,0.06355681,3418.4,3418.3,0.16529498]
[1732398535234,0.06355681,3418.4,3418.3,0.73781138]
[1732398540399,0.06355681,3418.4,3418.3,1.49701138]
[1732398540596,0.06355681,3418.4,3418.3,2.04701138]
[1732398540807,0.06355681,3418.4,3418.3,2.73498062]
[1732398541121,0.06355681,3418.4,3418.3,3.07827368]
[1732398541738,6.81e-06,3418.4,3418.3,6.07827368]
[1732398542526,3.73573,3420.4,3418.9,0.55]
[1732398542767,3.73573,3420.4,3419.2,0.55]
[1732398543057,3.73548,3420.7,3419.5,0.7592]
[1732398543225,3.73548,3420.7,3419.4,0.55]
[1732398543226,0.8121,3420.7,3419.7,0.7592]
[1732398543420,0.34426094,3421.0,3419.7,0.7592]
[1732398543421,1.15636094,3421.0,3419.8,0.55]
[1732398543656,1.15636094,3421.0,3419.8,0.57923594]
[1732398543828,0.8121,3421.0,3420.0,0.55]
[1732398544027,0.8121,3421.0,3420.0,1.14499693]
[1732398544224,0.8121,3421.4,3420.2,0.55]
[1732398544424,1.18558,3421.4,3420.3,0.78843261]
[1732398544669,0.8121,3421.7,3420.4,0.55]
[1732398544873,0.373454,3421.6,3420.4,0.70371023]
[1732398545374,2.92286,3421.4,3420.4,0.70371023]
[1732398545552,2.92276,3421.5,3420.4,0.70371023]
[1732398545741,2.92287,3421.3,3420.4,0.70371023]
[1732398546144,3.60331117,3421.0,3420.0,0.7592]
[1732398546469,0.8121,3421.0,3420.0,0.7592]
[1732398546672,2.9233,3420.8,3420.0,0.7592]
[1732398547032,2.92338,3420.7,3420.0,0.7592]
[1732398547234,2.92321,3420.9,3420.0,0.7592]
[1732398547435,2.92348,3420.6,3420.0,0.7592]
[1732398549232,3.60331117,3421.0,3420.0,0.7592]
[1732398549233,0.8121,3421.0,3420.0,0.78843614]
[1732398549451,0.8121,3421.0,3420.0,0.7592]
[1732398550256,2.92328,3420.9,3420.0,0.7592]
[1732398550448,0.8121,3421.0,3420.0,0.7592]
[1732398550688,2.92304,3421.1,3420.0,0.78843393]
[1732398550871,2.92315,3421.0,3420.0,0.78843393]
[1732398551048,2.92315,3421.0,3420.0,0.7592]
[1732398552586,3.71188,3421.3,3420.1,0.02923394]
[1732398552776,2.92288,3421.3,3420.2,0.8323]
[1732398553126,2.92287,3421.3,3420.3,0.55]
[1732398553580,2.92271,3421.5,3420.4,0.778]
[1732398553801,2.9228,3421.4,3420.4,0.778]
[1732398553955,3.0,3421.3,3420.4,0.778]
[1732398554582,2.9229,3421.3,3420.4,0.778]
[1732398554782,3.0,3421.2,3420.4,0.778]
[1732398555172,3.0,3421.0,3420.4,0.778]
[1732398555379,2.92318,3421.0,3420.4,0.778]
[1732398555692,3.0,3421.1,3420.4,0.778]
[1732398555892,2.92303,3421.1,3420.4,0.778]
[1732398556383,0.884561,3421.2,3420.4,0.778]
[1732398556686,3.0,3421.1,3420.4,0.778]
[1732398556865,5.92306,3421.1,3420.4,0.778]
[1732398557052,2.92355,3420.5,3420.1,0.8003]
[1732398557583,2.92366,3420.4,3420.1,0.8003]
[1732398558090,0.7921,3420.3,3419.6,0.59652899]
[1732398558296,0.7921,3420.3,3419.4,0.8003]
[1732398558792,2.92397,3420.1,3419.4,0.8003]
[1732398558951,2.92413,3419.9,3419.4,0.8003]
[1732398560712,0.7921,3420.3,3419.4,0.8003]
[1732398560713,2.92397,3420.0,3419.4,0.8003]
[1732398561481,2.9239,3420.1,3419.4,0.8003]
[1732398563116,3.0,3420.6,3419.7,0.55]
[1732398563320,2.92355,3420.5,3419.8,0.22965606]
[1732398563482,2.79121117,3421.2,3419.7,0.55]
[1732398563685,2.92339,3420.7,3419.7,0.55]
[1732398564117,2.92327,3420.9,3419.9,0.8003]
[1732398564532,2.92314,3421.0,3419.9,0.8003]
[1732398564533,2.92335,3420.8,3419.9,0.8003]
[1732398566120,3.0,3420.9,3420.0,0.55]
[1732398567117,2.92321,3420.9,3420.1,0.19655203]
[1732398567837,5.92306,3421.1,3420.1,0.19655203]
[1732398567838,3.0,3421.1,3420.1,0.19655203]
[1732398568038,2.92343,3420.7,3420.1,0.19655203]
[1732398568215,2.92348,3420.6,3420.0,0.55]
[1732398568800,2.92322,3420.9,3420.0,0.55]
[1732398569000,2.92334,3420.8,3420.0,0.55]
[1732398572240,2.92304,3421.1,3420.2,0.55]
[1732398572407,2.92304,3421.1,3420.3,0.8283]
[1732398572608,3.55341117,3421.6,3420.3,0.8283]
[1732398572839,2.92275,3421.5,3420.5,0.8283]
[1732398573164,2.92276,3421.5,3420.7,0.8283]
[1732398573444,5.71382117,3421.6,3420.7,0.8283]
[1732398573630,2.92279,3421.4,3420.7,0.8283]
[1732398573936,2.9226,3421.7,3420.9,0.7663]
[1732398574345,0.75,3422.2,3420.9,0.7663]
[1732398574548,0.75,3422.2,3421.0,0.2917]
[1732398574847,2.92253,3421.7,3421.1,0.1608]
[1732398577410,3.0,3421.8,3421.1,0.1608]
[1732398577911,3.0,3422.2,3421.3,0.7663]
[1732398580974,2.79121117,3422.3,3421.3,0.7663]
[1732398582679,5.71327117,3422.3,3421.3,0.7663]
[1732398583209,2.92218,3422.1,3421.3,0.7663]
[1732398584254,2.92216,3422.2,3421.3,0.7663]
[1732398584550,2.92218,3422.1,3421.3,0.7663]
[1732398585136,2.79121117,3422.3,3421.3,0.7663]
[1732398585445,2.9222,3422.1,3421.3,0.7663]
[1732398586841,2.92202,3422.3,3421.3,0.7663]
[1732398587057,2.92211,3422.2,3421.3,0.7663]
[1732398588007,3.0,3422.1,3421.3,0.7663]
[1732398589704,2.92226,3422.0,3421.3,0.7663]
[1732398592007,2.92236,3421.9,3421.3,0.7663]
[1732398592896,5.92244,3421.8,3421.3,0.7663]
[1732398593099,2.9227,3421.5,3421.3,0.7663]
[1732398595766,2.92265,3421.6,3421.3,0.7663]
[1732398596974,2.92257,3421.7,3421.3,0.7663]
[1732398597298,2.92272,3421.5,3421.3,0.7663]
[1732398598092,2.92278,3421.4,3421.3,0.7663]
[1732398600216,2.92308,3421.1,3421.0,0.8043]
[1732398600427,2.92353,3420.6,3419.9,0.02923073]
[1732398600720,2.92353,3420.6,3420.0,0.8043]
[1732398601294,2.92329,3420.8,3420.0,1.096]
[1732398601874,2.92329,3420.8,3420.0,1.68180725]
[1732398602080,2.92329,3420.8,3420.1,0.17110408]
[1732398602916,2.92354,3420.6,3420.1,0.17110408]
[1732398603616,2.92339,3420.7,3420.1,0.17110408]
[1732398605215,2.92401,3420.0,3419.8,2.031758]
[1732398605375,2.92406,3419.9,3419.8,2.031758]
[1732398605578,2.92406,3419.9,3419.7,0.8043]
[1732398605822,2.92392,3420.1,3419.7,0.8043]
[1732398606117,2.9241,3419.9,3419.7,0.8043]
[1732398606416,2.92414,3419.8,3419.7,0.8043]
[1732398607798,2.92408,3419.9,3419.7,0.8043]
[1732398608180,2.92414,3419.8,3419.7,0.8043]
[1732398609628,0.821,3420.7,3419.7,0.8043]
[1732398609785,2.92373,3420.3,3419.7,0.8043]
[1732398610136,2.92386,3420.2,3419.7,0.8043]
[1732398610878,1.34635,3420.2,3419.2,0.7662]
[1732398611186,2.92389,3420.1,3419.2,0.7662]
[1732398611377,2.92446,3419.5,3419.2,0.7662]
[1732398611978,2.92432,3419.6,3419.2,0.7662]
[1732398612585,2.9244,3419.5,3419.2,0.7662]
[1732398615503,2.92423,3419.7,3419.2,0.7662]
[1732398615740,2.92442,3419.5,3419.2,0.7662]
[1732398616785,2.92432,3419.6,3419.2,0.7662]
[1732398617251,7.12436029,3420.2,3419.2,0.7662]
[1732398617252,2.92398,3420.0,3419.2,0.7662]
[1732398617614,2.92363,3420.4,3419.3,0.0292416]
[1732398617809,2.92338,3420.7,3419.6,0.8001]
[1732398618015,2.92338,3420.7,3419.8,0.8001]
[1732398619116,2.92346,3420.6,3419.8,0.8001]
[1732398620553,2.9233,3420.8,3419.8,0.8001]
[1732398620869,2.92339,3420.7,3419.8,0.8001]
[1732398621547,2.92349,3420.6,3419.8,0.8001]
[1732398621752,2.92335,3420.8,3419.8,0.8001]
[1732398622062,2.92338,3420.7,3419.8,0.8001]
[1732398622378,2.92338,3420.7,3420.0,0.59772301]
[1732398622679,2.92442,3419.5,3419.3,0.8001]
[1732398622854,2.92426,3419.7,3419.3,0.8001]
[1732398623390,2.92445,3419.5,3419.3,0.8001]
[1732398624031,3.0,3419.4,3419.3,0.8001]
[1732398624469,2.92448,3419.4,3419.3,0.8001]
[1732398625085,2.9244,3419.5,3418.9,0.59533048]
[1732398625247,2.92449,3419.4,3418.9,0.59533048]
[1732398625448,2.92471,3419.2,3418.8,0.8001]
[1732398625665,2.92451,3419.4,3418.8,1.38766936]
[1732398626545,2.92434,3419.6,3418.8,1.38766936]
[1732398626778,2.92434,3419.6,3418.9,0.8001]
[1732398626978,2.92434,3419.6,3419.0,0.21877694]
[1732398628465,2.92415,3419.8,3419.0,0.24802083]
[1732398628771,2.79121117,3420.1,3419.1,0.7722]
[1732398629091,2.92405,3420.0,3419.3,0.7722]
[1732398629870,2.92409,3419.9,3419.3,0.7722]
[1732398630891,2.79121117,3420.1,3419.3,0.7722]
[1732398631361,2.92406,3419.9,3419.3,0.7722]
[1732398631561,2.79121117,3420.1,3419.3,0.7722]
[1732398631788,2.92415,3419.8,3419.3,0.7722]
[1732398631984,0.0598633,3420.0,3419.3,0.7722]
[1732398632184,0.0595139,3419.7,3419.3,0.7722]
[1732398632399,2.92406,3419.9,3419.3,0.7722]
[1732398632896,0.05955152,3419.8,3419.3,0.7722]
[1732398634292,2.92428,3419.7,3419.3,0.7722]
[1732398634783,0.05947454,3419.6,3419.3,0.7722]
[1732398637164,2.98378454,3419.6,3419.3,0.7722]
[1732398637320,0.05947454,3419.6,3419.3,0.7722]
[1732398637722,2.92415,3419.8,3419.3,0.7722]
[1732398637956,0.0585078,3419.5,3419.3,0.7722]
[1732398638150,2.92415,3419.8,3419.3,0.7722]
[1732398638354,0.05847105,3419.4,3419.3,0.7722]
[1732398638861,5.71510117,3420.1,3419.3,0.7722]
[1732398639031,2.92416,3419.8,3419.3,0.7722]
[1732398639355,0.05858127,3419.7,3419.3,0.7722]
[1732398639685,2.92416,3419.8,3419.3,0.7722]
[1732398639832,0.05859527,3419.7,3419.3,0.7722]
[1732398640148,2.92414,3419.9,3419.3,0.7722]
[1732398640149,2.92432,3419.6,3419.3,0.7722]
[1732398640346,0.05855854,3419.6,3419.3,0.7722]
[1732398640737,2.92417,3419.8,3419.3,0.7722]
[1732398640943,0.0585218,3419.5,3419.3,0.7722]
[1732398641271,0.05848505,3419.4,3419.3,0.7722]
[1732398641474,2.92432,3419.6,3419.3,0.7722]
[1732398641659,0.0585218,3419.5,3419.3,0.7722]